Cogmind - Beta 14 @@@ ROGUE MODE // 2024.08.17 @ 18:25:43 Player: N.W.L Result: Self-destructed Performance ------------- Evolutions (3) 1500 Regions Visited (6) 1200 Robots Destroyed (107) 535 Value Destroyed (3555) 3555 Prototype IDs (16) 320 Alien Tech Used (0) 0 Bonus (536) 536 TOTAL SCORE: 7646 Bonus ------- High Alert Combat Kills 374 Follower Combat Kills 103 Entered Garrisons 200 Friendly Fire -141 Cogmind --------- Core Integrity 367/700 Matter 18/300 Energy 160/160 System Corruption 11% Temperature Cool (-100) Movement Rolling (175) Ox5 Location -7/Storage Parts ------- > --- POWER (1) -------- Light Nuclear Core > --- PROPULSION (3) --- Light Treads Advanced Treads Compact Wheel > --- UTILITY (5) ------ Cryofiber Web Improved Heat Sink Advanced Heat Sink Huge Storage Unit > --- WEAPON (4) ------- Particle Gun Enhanced Autogun Flamer > --- INVENTORY (25) --- Light Treads Light Treads Light Treads Advanced Treads Coolant Injector Large Storage Unit Matter Filter Force Booster Hardened Heavy Armor Plating Insulated Plating Insulated Plating Insulated Plating Insulated Plating Insulated Plating Power Bank Subdweller Beam Cannon Light Cannon Datajack Plasma Cutter Multitool Makeshift Axe Peak State ------------ > --- POWER ------------ Improved Ion Engine > --- PROPULSION ------- Light Treads Light Treads Light Treads > --- UTILITY ---------- Cryofiber Web Advanced Heat Sink Huge Storage Unit Matter Filter Reactive Plating > --- WEAPON ----------- Precision Beam Rifle Advanced Beam Rifle Grenade Launcher Makeshift Axe > --- INVENTORY -------- Light Treads Light Treads Light Treads Light Treads Light Treads Improved Heat Sink Coolant Injector Large Storage Unit Improved Propulsion Shielding Light Armor Plating Light Armor Plating Insulated Plating Power Bank Beam Rifle Subdweller Beam Cannon Enhanced Autogun Light Cannon Grenade Launcher Plasma Cutter Multitool Flamer Flamer Shrapnel Trap Shrapnel Trap [Rating: 39] Favorites ----------- Power Subdweller Power Source Engine Subdweller Power Source Power Core Light Nuclear Core Propulsion Light Treads Treads Light Treads Wheel Compact Wheel Utility Large Storage Unit Device Seismic Detector Storage Large Storage Unit Hackware Hacking Suite Protection Reactive Plating Weapon Medium Laser Energy Gun Medium Laser Energy Cannon Beam Cannon Ballistic Gun Assault Rifle Ballistic Cannon Light Cannon Launcher Grenade Launcher Special Weapon Mining Laser Impact Weapon Hammer Slashing Weapon Makeshift Axe Build | -11 -10 -10 -8 -8 -7 -7 ------- Run | Yrd Mat Sub Mat Gar Fac Sto Slots Evolved 6 | . . . 4 . 2 . Power . | . . . . . . . Propulsion 1 | . . . 1 . . . Utility 3 | . . . 2 . 1 . Weapon 2 | . . . 1 . 1 . Parts Attached 154 | 7 25 22 39 30 22 9 Power 10 | 1 3 1 2 1 1 1 Engine 8 | 1 2 1 2 1 1 . Core 2 | . 1 . . . . 1 Reactor . | . . . . . . . Propulsion 27 | 2 . 1 8 8 6 2 Treads 26 | 2 . 1 8 8 6 1 Leg . | . . . . . . . Wheel 1 | . . . . . . 1 Hover . | . . . . . . . Flight . | . . . . . . . Utility 41 | 2 10 4 8 6 9 2 Device 24 | 1 7 4 3 4 3 2 Storage 5 | 1 3 . 1 . . . Processor . | . . . . . . . Hackware 1 | . . . 1 . . . Protection 11 | . . . 3 2 6 . Artifact . | . . . . . . . Weapon 76 | 2 12 16 21 15 6 4 Energy Gun 31 | . 6 5 10 8 1 1 Energy Cannon 6 | . . 2 4 . . . Ballistic Gun 6 | 2 2 . 1 . 1 . Ballistic Cannon 5 | . . 1 3 . 1 . Launcher 10 | . . . 1 6 3 . Special Weapon 6 | . 2 2 . . . 2 Impact Weapon 5 | . 2 3 . . . . Slashing Weapon 7 | . . 3 2 1 . 1 Piercing Weapon . | . . . . . . . Special Melee Weapon . | . . . . . . . Unidentified Prototypes 5 | . . . 5 . . . Parts Lost 33 | . 4 1 2 4 17 5 Power 5 | . 2 . . 1 2 . Propulsion 11 | . . 1 2 1 6 1 Utility 10 | . 1 . . 2 5 2 Weapon 7 | . 1 . . . 4 2 Highest Loss Streak 13 | . 1 1 1 1 13 3 To Critical Strikes 1 | . . 1 . . . . Average Slot Usage (%) 97 | . 99 100 93 99 90 79 Engine 8 | . 5 14 6 8 5 . Core 2 | . 8 . . . . 3 Treads 26 | . 28 28 26 27 22 18 Device 15 | . 13 14 15 17 20 11 Storage 11 | . 14 14 9 9 7 7 Hackware 1 | . . . 5 2 . . Protection 2 | . . . 3 7 8 14 Energy Gun 15 | . 7 18 17 22 15 5 Ballistic Gun 3 | . 10 . . . . 7 Special Weapon 2 | . 6 1 3 . . 1 Impact Weapon 1 | . 2 1 . . . . Slashing Weapon 2 | . . 6 . 1 6 . Peak Build Rating 39 | 7 12 16 34 35 39 39 Average Rating 18 | 5 9 12 22 31 35 28 On Entrance 17 | . 7 9 13 33 33 25 Naked Turns . | . . . . . . . Heaviest Build 115 | 14 30 36 105 108 115 109 Greatest Support 62 | 40 40 40 62 62 60 60 Greatest Overweight (x) 6 | . . . 2 1 2 6 Average Overweight (x) . | . . . . 1 1 2 Largest Inventory Capacity 25 | 8 15 15 25 25 25 25 Average Capacity 18 | 7 13 15 21 25 25 25 Most Carried 25 | 4 15 15 25 25 25 24 Average Carried 16 | 1 10 14 21 24 22 15 Final Capacity 25 | 8 15 15 25 25 25 25 Final Carried 25 | 4 15 15 25 25 15 22 Class Distribution -------------------- 60% | Mutant 15% | Scavenger-Tank 11% | Scavenger-Gunner 9% | Scavenger-Mutant 3% | Tank Dominant Class ---------------- Mutant | -10/Materials Mutant | -10/Subcaves Scavenger-Gunner | -8/Materials Scavenger-Tank | -8/Garrison Scavenger-Mutant | -7/Factory Scavenger-Tank | -7/Storage Resources | -11 -10 -10 -8 -8 -7 -7 ----------- Run | Yrd Mat Sub Mat Gar Fac Sto Matter Collected 2228 | 216 487 220 459 481 249 116 Remotely . | . . . . . . . Salvage Created 3918 | 94 954 124 1350 765 439 192 Parts 202 | 8 52 8 67 33 24 10 Haulers Intercepted 8 | . 2 . 4 . . 2 Recyclers Shooed 8 | 1 1 . 4 . 1 1 Parts Field Recycled . | . . . . . . . Retrieved Matter . | . . . . . . . Parts Self-Destructed 9 | . . 9 . . . . Prevented . | . . . . . . . Kills | -11 -10 -10 -8 -8 -7 -7 ------- Run | Yrd Mat Sub Mat Gar Fac Sto Combat Hostiles Destroyed 76 | . 16 4 22 21 11 2 Guns 44 | . 15 3 9 9 6 2 Cannons 6 | . . . 4 . 2 . AOE 21 | . . . 7 12 2 . Classes Destroyed 13 | 2 4 2 3 1 1 . Worker 5 | . 1 . 4 . . . Tunneler 3 | 2 . . . . 1 . Hauler 8 | . 2 . 4 . . 2 Recycler 8 | 1 1 . 4 . 1 1 Operator 1 | . . . 1 . . . Watcher 5 | . 3 . 2 . . . Swarmer 17 | . . 1 9 3 4 . Grunt 37 | . 16 . 6 11 2 2 Sentry 12 | . . . 6 4 2 . Specialist 3 | . . . . 3 . . Hunter 3 | . . . 1 . 2 . Programmer 1 | . . . . . 1 . Subdweller 3 | . . 3 . . . . Guerrilla 1 | . . . . 1 . . Best Kill Streak 6 | 2 4 1 6 6 5 3 Combat Bots Only 6 | . 3 1 6 6 5 2 Max Kills in Single Turn 3 | 1 1 1 3 3 1 1 Gunslinging . | . . . . . . . Exploded 3 | . . . 3 3 1 . Melee . | . . . . . . . Uniques/NPCs Destroyed . | . . . . . . . Combat | -11 -10 -10 -8 -8 -7 -7 -------- Run | Yrd Mat Sub Mat Gar Fac Sto Hostile Shots Fired 611 | . 59 22 99 87 278 66 Missed 191 | . 10 4 26 30 104 17 Damage Taken 5384 | . 642 334 903 825 2117 563 Core 758 | . 104 106 128 87 233 100 Absorbed by Shields 25 | . . . . 25 . . Redirected to Shielding 110 | . . . . . 110 . Ignored by Resistances 247 | . . . . 21 226 . Regen/Repaired (Parts) 39 | . . . . . 39 . Core Remaining (%) 58 | 100 . 16 . 60 . . Volleys Fired 314 | 11 83 24 80 52 38 26 Largest 3 | 2 2 2 3 3 3 3 Hottest 250 | 40 100 200 250 178 178 200 Shots Fired 651 | 22 154 44 194 105 79 53 Gun 525 | 22 145 28 150 87 59 34 Cannon 67 | . . 10 28 . 14 15 Launcher 28 | . . . 4 18 6 . Special 31 | . 9 6 12 . . 4 Kinetic 165 | 22 63 2 9 . 33 36 Thermal 431 | . 64 42 181 87 40 17 Explosive 28 | . . . 4 18 6 . Electromagnetic 27 | . 27 . . . . . Robot Hit Streak 22 | 7 18 22 18 10 15 9 Robot Miss Streak 3 | 2 3 1 3 2 3 3 Penetration Max . | . . . . . . . Secondary Targets 6 | . 1 . 1 1 3 . Max Gunslinging Chain 1 | . 1 . 1 1 1 . Shots Hit Robots 418 | 13 99 33 131 55 56 31 Core Hits 204 | 4 39 9 61 53 29 9 Critical Kills . | . . . . . . . Critical Parts Destroyed . | . . . . . . . Critical Strikes 19 | . 1 2 9 3 3 1 Burn 16 | . 1 . 9 3 2 1 Blast 1 | . . . . . 1 . Smash 2 | . . 2 . . . . Melee Attacks 76 | . 12 54 2 2 5 1 Impact 34 | . 12 22 . . . . Slashing 42 | . . 32 2 2 5 1 Piercing . | . . . . . . . Sneak Attacks 4 | . 1 1 2 . . . Combat Hostiles 1 | . . 1 . . . . Follow-up Attacks 1 | . . 1 . . . . Damage Inflicted 8691 | 149 1328 491 2501 2398 1283 541 Guns 5272 | 149 1258 235 1557 928 786 359 Cannons 623 | . . 70 272 . 132 149 Explosions 2231 | . . . 401 1470 360 . Melee 356 | . 70 120 166 . . . Ramming 5 | . . . . . 5 . Kinetic 1475 | 149 514 . 73 . 357 382 Thermal 4384 | . 504 371 1861 928 561 159 Explosive 2231 | . . . 401 1470 360 . Electromagnetic 240 | . 240 . . . . . Impact 190 | . 70 120 . . . . Slashing 166 | . . . 166 . . . Piercing . | . . . . . . . Highest Corruption 11 | . . . 2 2 11 11 Average Corruption 4 | . . . 2 2 7 11 Corruption Purged . | . . . . . . . Corruption Blocked . | . . . . . . . Effects 40 | . . . 2 18 5 15 Message Errors 7 | . . . 1 3 . 3 Matter Fused 12 | . . . . 7 2 3 Heat Flow Errors 8 | . . . . 3 1 4 Energy Discharges 4 | . . . . 2 . 2 Data Loss (minor) 1 | . . . . . . 1 Data Loss (major) 1 | . . . 1 . . . Misfires 3 | . . . . 2 . 1 Alerts 1 | . . . . 1 . . Weapon Failures 3 | . . . . . 2 1 Overload Shots . | . . . . . . . Overflow Damage 205 | . 50 10 122 23 . . Projectiles 3 | . . . 3 . . . Explosions 31 | . . . 8 23 . . Melee 171 | . 50 10 111 . . . Knockbacks 5 | . . . 2 . 1 2 Impact . | . . . . . . . Kinetic 5 | . . . 2 . 1 2 Secondary . | . . . . . . . Self-Inflicted Damage 82 | . . . . 73 9 . Shots 8 | . . . . 6 2 . Rammed 1 | . . . . . 1 . Targets Rammed 1 | . . . . . 1 . Kicked . | . . . . . . . Crushed . | . . . . . . . Highest Temperature 460 | . 273 . 287 460 391 246 Average Temperature 119 | . 65 . 119 196 205 66 Received Heat Transfer 1488 | . 360 30 243 327 264 264 Effects 10 | . 1 . 1 3 5 . Shutdowns 1 | . . . . . 1 . Energy Bleed 2 | . 1 . 1 . . . Interference 3 | . . . . . 3 . Matter Decay 1 | . . . . 1 . . Short Circuit 1 | . . . . 1 . . Damage (minor) 1 | . . . . . 1 . Damage (major) 1 | . . . . 1 . . Siege Activations . | . . . . . . . Robots Corrupted 1 | . 1 . . . . . Combat Hostiles . | . . . . . . . Parts Fried . | . . . . . . . Impact Corruptions 2 | . 1 1 . . . . Robots Melted 7 | . 2 1 3 . 1 . Combat Hostiles 5 | . 1 1 2 . 1 . Parts Melted 33 | . 6 4 20 2 1 . Heat Transferred 12622 | . 1469 1331 5924 1956 1332 610 Parts Sabotaged . | . . . . . . . Parts Stolen . | . . . . . . . Parts Stripped . | . . . . . . . Power Chain Reactions . | . . . . . . . Alert | -11 -10 -10 -8 -8 -7 -7 ------- Run | Yrd Mat Sub Mat Gar Fac Sto Peak Influence 1083 | 15 289 . 385 1083 570 297 Initial 568 | . 9 . . 250 568 216 Average 273 | 7 90 . 152 687 463 248 Maximum Alert Level 3 | . 1 . 1 3 2 1 Low Security (%) 55 | 100 92 . 82 . . 3 Level 1 21 | . 7 . 17 19 43 96 Level 2 14 | . . . . 33 56 . Level 3 8 | . . . . 46 . . Level 4 . | . . . . . . . Level 5 . | . . . . . . . High Security . | . . . . . . . Max Security . | . . . . . . . Squads Dispatched 13 | . 5 . 3 . 4 1 Investigation 5 | . 3 . . . 2 . Extermination 1 | . . . . . 1 . Reinforcement 5 | . 2 . 2 . . 1 Assault . | . . . . . . . Garrison 2 | . . . 1 . 1 . Intercept . | . . . . . . . Searches Triggered . | . . . . . . . Construction Impeded . | . . . . . . . Haulers Reinforced . | . . . . . . . Active Scanning Responses . | . . . . . . . Cargo Convoy Interrupts . | . . . . . . . Stealth | -11 -10 -10 -8 -8 -7 -7 --------- Run | Yrd Mat Sub Mat Gar Fac Sto Distress Signals 5 | . 2 . 3 . . . Communications Jammed . | . . . . . . . Distress Signals . | . . . . . . . Times Spotted 127 | . 31 8 41 25 14 8 Peak Tracking Total 7 | . 3 3 7 6 5 5 Tactical Retreats 8 | . 4 2 . 1 1 . Traps | -11 -10 -10 -8 -8 -7 -7 ------- Run | Yrd Mat Sub Mat Gar Fac Sto Traps Triggered 8 | . 1 . . 7 . . Indirectly . | . . . . . . . Trap Hack Attempts . | . . . . . . . Triggered . | . . . . . . . Disarmed . | . . . . . . . Reprogrammed . | . . . . . . . Reused 2 | . . . . . . 2 Traps Extracted . | . . . . . . . Installed 2 | . . . . . . 2 Triggered 2 | . . . . . . 2 Most Traps Carried 2 | . . 2 2 2 2 2 Machines | -11 -10 -10 -8 -8 -7 -7 ---------- Run | Yrd Mat Sub Mat Gar Fac Sto Machines Disabled 8 | . . 1 3 3 1 . Max in Single Turn 1 | . . 1 1 1 1 . Garrison Relay 2 | . . . . 2 . . Machines Repaired . | . . . . . . . Machines Dismantled . | . . . . . . . Machines Sabotaged . | . . . . . . . Overloaded Fab Kills . | . . . . . . . Hacking | -11 -10 -10 -8 -8 -7 -7 --------- Run | Yrd Mat Sub Mat Gar Fac Sto Machines Accessed 21 | . 8 1 7 2 3 . Terminals 14 | . 5 . 5 2 2 . Fabricators . | . . . . . . . Repair Stations 2 | . 1 . . . 1 . Recycling Units 3 | . 2 . 1 . . . Scanalyzers . | . . . . . . . Garrison Access 1 | . . . 1 . . . Total Hacks 53 | . 20 2 20 2 9 . Successful 23 | . 7 2 7 2 5 . Failed 29 | . 12 . 13 . 4 . Catastrophic 4 | . . . 2 . 2 . Database Lockouts 1 | . 1 . . . . . Manual 17 | . 7 . 10 . . . Terminals 36 | . 12 . 17 2 5 . Fabricators . | . . . . . . . Repair Stations 7 | . 3 . . . 4 . Recycling Units 7 | . 5 . 2 . . . Scanalyzers . | . . . . . . . Garrison Access 1 | . . . 1 . . . Terminal Hacks 14 | . 5 2 4 2 1 . Record 1 | . . 1 . . . . Robot Analysis 5 | . 2 . 3 . . . Open Door 1 | . . . . 1 . . Branch Access Points 2 | . . . 1 . 1 . Locate Traps 1 | . 1 . . . . . Zone Layout 2 | . 2 . . . . . Patrol Navigation 1 | . . . . 1 . . Derelict Proto ID Bank 1 | . . 1 . . . . Fabricator Hacks . | . . . . . . . Repair Station Hacks 4 | . . . . . 4 . Scan Component 2 | . . . . . 2 . Repair 2 | . . . . . 2 . Recycling Unit Hacks 3 | . 1 . 2 . . . Retrieve Matter 1 | . . . 1 . . . Retrieve Components 2 | . 1 . 1 . . . Scanalyzer . | . . . . . . . Garrison Access Hacks 1 | . . . 1 . . . Unlock Access 1 | . . . 1 . . . Unauthorized Hacks 1 | . 1 . . . . . Terminals . | . . . . . . . Fabricators . | . . . . . . . Repair Stations . | . . . . . . . Recycling Units 1 | . 1 . . . . . Tunnel 1 | . 1 . . . . . Scanalyzers . | . . . . . . . Garrison Access . | . . . . . . . Data Cores Recovered . | . . . . . . . Used . | . . . . . . . Hacking Detections 13 | . 5 . 5 1 2 . Full Trace Events 5 | . 2 . 1 . 2 . Feedback Events . | . . . . . . . Feedback Blocked . | . . . . . . . Robot Schematics Acquired . | . . . . . . . Robots Built . | . . . . . . . Authchips . | . . . . . . . Time . | . . . . . . . Total Robot Build Rating . | . . . . . . . Part Schematics Acquired . | . . . . . . . Parts Built . | . . . . . . . Authchips . | . . . . . . . Time . | . . . . . . . Total Part Build Rating . | . . . . . . . Parts Repaired 2 | . . . . . 2 . Time 64 | . . . . . 64 . Parts Recycled . | . . . . . . . Recycled Matter . | . . . . . . . Retrieved Matter . | . . . . . . . Retrieved Components 10 | . 10 . . . . . Parts Scanalyzed . | . . . . . . . Part Schematics Acquired . | . . . . . . . Parts Damaged . | . . . . . . . Bothacking | -11 -10 -10 -8 -8 -7 -7 ------------ Run | Yrd Mat Sub Mat Gar Fac Sto Used RIF Installer . | . . . . . . . Robots Hacked . | . . . . . . . Non-combat . | . . . . . . . Combat . | . . . . . . . Robot Hacks Applied . | . . . . . . . Relay Couplers Released 8 | . . . . 8 . . Machine Destruction 8 | . . . . 8 . . Fabnet Peak Effective % . | . . . . . . . Robots Rewired . | . . . . . . . Allies Hacked . | . . . . . . . Hacks Repelled . | . . . . . . . Allies | -11 -10 -10 -8 -8 -7 -7 -------- Run | Yrd Mat Sub Mat Gar Fac Sto Total Allies 2 | . . . . 2 . . Largest Group 2 | . . . . 2 . . Highest-Rated Group 70 | . . . . 70 . . Highest-Rated Ally 39 | . . . . 39 . . Total Orders . | . . . . . . . Ally Attacks 21 | . . . . 21 . . Total Damage 313 | . . . . 313 . . Kills 3 | . . . . 3 . . Allies Corrupted . | . . . . . . . Allies Melted . | . . . . . . . Intel | -11 -10 -10 -8 -8 -7 -7 ------- Run | Yrd Mat Sub Mat Gar Fac Sto Robot Analysis Total 5 | . 2 . 3 . . . Derelict Logs Recovered 1 | . . 1 . . . . Drone Launches . | . . . . . . . Drone Recoveries . | . . . . . . . Exploration | -11 -10 -10 -8 -8 -7 -7 ------------- Run | Yrd Mat Sub Mat Gar Fac Sto Turns Passed 10765 | 122 3129 3048 1529 1428 1095 414 Spaces Moved 3450 | 51 906 1012 528 502 326 125 Core 3 | 3 . . . . . . Treads 3406 | 48 906 1012 528 502 326 84 Legs . | . . . . . . . Wheels 41 | . . . . . . 41 Hover . | . . . . . . . Flight . | . . . . . . . Fastest Speed 50 | 50 160 160 160 235 240 190 Average Speed 190 | 153 160 160 215 237 240 235 Slowest Speed 320 | 160 160 160 320 240 320 320 Overloaded Moves . | . . . . . . . Propulsion Burnouts . | . . . . . . . Robots Hopped . | . . . . . . . Cave-ins Triggered 1 | . . . . . 1 . Exploration Rate (%) 41 | 5 96 49 52 58 12 16 Regions Visited 6 Branch Regions 2 Pre-discovered Areas 1 | . 1 . . . . . Known Exits Taken 2 | . . . 1 . 1 . Unknown Exits Taken 3 | 1 1 1 . . . . Scrap Searched 10 | . . 10 . . . . Spaces Dug 77 | . 14 23 1 20 18 1 Terrain Destroyed 144 | . 15 23 21 55 29 1 Melee 34 | . 6 21 . 1 5 1 Projectile 13 | . 9 2 2 . . . AOE 97 | . . . 19 54 24 . Terrain Rammed . | . . . . . . . Walls Destroyed . | . . . . . . . Machines Disabled . | . . . . . . . Actions | -11 -10 -10 -8 -8 -7 -7 --------- Run | Yrd Mat Sub Mat Gar Fac Sto Total 6932 | 72 2391 2316 749 641 568 195 Wait 2815 | . 1342 1184 66 38 165 20 Move 3445 | 50 905 1011 528 501 325 125 Hop . | . . . . . . . Pick Up 57 | 4 15 10 11 . 7 10 Fast Attach 33 | 7 2 2 15 . 3 4 Attach 33 | . 4 1 5 5 16 2 Detach 12 | . 2 . 7 . 3 . Swap 88 | . 19 19 19 25 3 3 Drop 44 | . 7 12 16 5 2 2 Fire 314 | 11 83 24 80 52 38 26 Melee 75 | . 12 53 2 2 5 1 Ram . | . . . . . . . Kick . | . . . . . . . Crush 1 | . . . . . 1 . Escape Stasis 13 | . . . . 13 . . Rewire . | . . . . . . . Trap 2 | . . . . . . 2 Miscellaneous . | . . . . . . . Route ------- -11/Scrapyard -10/Materials (discovered 5 exits: [*Mat x3] / [*Min] / *Sub) -10/Subcaves -8/Materials (discovered 4 exits: *Fac x3 / Gar) -8/Garrison (discovered 2 exits: *Fac x2) -7/Factory (discovered 4 exits: *Sto x2 / Low x2) -7/Storage History --------- Turn | Location | Event 4 | -11/Scrapyard | Discovered new exit (range 16) 123 | -11/Scrapyard | Entered Materials 305 | -10/Materials | Build established: Mutant 619 | -10/Materials | Discovered new exit (range 11) 859 | -10/Materials | Discovered new exit (range 14) 2420 | -10/Materials | Central database locked down 2812 | -10/Materials | Discovered new exit (range 8) 2841 | -10/Materials | Discovered new exit (range 16) 2990 | -10/Materials | Discovered new exit (range 8) 3252 | -10/Materials | Entered Subcaves 3347 | -10/Subcaves | Core integrity fell below 50% 3435 | -10/Subcaves | Shifting Twisted Machinery released Shrapnel Trap 3440 | -10/Subcaves | Shifting Twisted Machinery released Sub. Beam Cannon 3746 | -10/Subcaves | Ambushed by Subdweller buried in earth 4747 | -10/Subcaves | Learned 8 Materials zone layouts 4798 | -10/Subcaves | Disturbed a concealed Subdweller 4860 | -10/Subcaves | Shifting Twisted Machinery released Sub. Monowheel 4918 | -10/Subcaves | Shifting Twisted Machinery released Flamer 5006 | -10/Subcaves | Visited 4L-MR0's lab 5025 | -10/Subcaves | Found Power Bank 5129 | -10/Subcaves | A swath of the cavern ceiling suddenly collapsed 6265 | -10/Subcaves | Core integrity fell below 20% 6290 | -10/Subcaves | Discovered new exit (range 7) 6300 | -10/Subcaves | Entered Materials 6300 | -8/Materials | Evolved 4 slots: Propulsion x1, Utility x2, Weapon x1 6301 | -8/Materials | Identified exit to Factory 7164 | -8/Materials | Build established: Scavenger-Gunner 7690 | -8/Materials | Discovered exit to Factory (range 15) 7734 | -8/Materials | Garrison activated, responded to threat 7829 | -8/Materials | Identified exit to Garrison 7829 | -8/Materials | Entered Garrison 7863 | -8/Garrison | Triggered checkpoint 7892 | -8/Garrison | Garrison Relay disabled 8067 | -8/Garrison | Triggered checkpoint 8371 | -8/Garrison | Garrison Relay disabled 8428 | -8/Garrison | Discovered exit to Factory (range 12) 8444 | -8/Garrison | Rescued a captive Derelict 8448 | -8/Garrison | Rescued a captive Derelict 8502 | -8/Garrison | Build established: Scavenger-Tank 8525 | -8/Garrison | Triggered checkpoint 8730 | -8/Garrison | Discovered exit to Factory (range 10) 8753 | -8/Garrison | Triggered checkpoint 8965 | -8/Garrison | Triggered checkpoint 9257 | -8/Garrison | Entered Factory 9257 | -7/Factory | Evolved 2 slots: Utility x1, Weapon x1 9386 | -7/Factory | Build established: Scavenger-Mutant 9693 | -7/Factory | Repaired Flamer 9726 | -7/Factory | Repaired Flamer 10066 | -7/Factory | Lost 4 parts (1p2n1w) 10179 | -7/Factory | Identified exit to Storage 10179 | -7/Factory | Identified exit to Lower Caves 10250 | -7/Factory | Crushed by falling debris 10250 | -7/Factory | System corruption reached 10% 10275 | -7/Factory | Garrison activated, responded to threat 10292 | -7/Factory | Lost 13 parts (1p4n5u3w) 10308 | -7/Factory | Build established: Scavenger-Tank 10352 | -7/Factory | Entered Storage 10766 | -7/Storage | Self-destructed Last Messages --------------- 10689_ Acquired Lgt. Treads. 10690_ Acquired 40 matter. 10691_ K-01 Serf collects debris. 10696_ &S&%7PWKDG5 VY5IAG>#ABLDHI%QMU%B 10697_ Acquired Insulated Plating. 10699_ K-01 Serf collects debris. 10700_ Acquired Insulated Plating. 10703_ K-01 Serf collects debris. 10703_ Acquired Insulated Plating. 10706_ K-01 Serf collects debris. 10706_ Acquired Insulated Plating. 10709_ K-01 Serf collects debris. 10711_ Acquired Insulated Plating. 10713_ K-01 Serf collects debris. 10714_ System corrupted: Component data lost. 10723_ Acquired Datajack. 10731_ Imp. Medium Armor Plating destroyed. 10733_ System corrupted: Energy discharge (-35). 10760_ Lgt. Armor Plating destroyed. 10765_ Flamer destroyed. Map ----- +----------------------------------------------------+ | ?????????????????????????????????????????????????? | | ?????????????????????????????????????????????????? | | ?????????????????????????????????????????????????? | | ?????????????????????????????????????????????????? | | ?????????????????????????????????????????????????? | | ?????????????????????????????????????????????????? | | ?????????????????????????????????????????????????? | | ?????????????????????????????????????????????????? | | ?????????????????????????????????????????????????? | | ?????????????????????????????????????????????????? | | ?????????????##??????????????????????????????????? | | ???????????? #??#####???????????????????????????? | | ??????????? #?? ???????????????????????????? | | ?????#?? #? ??????????????????????????? | | ?????# [ # """ """ #????????????????????????? | | ?????# """" # """ """ #????????????????????????? | | ?????# """" ^ # """ """ #????????????????????????? | | ?????# """" # """ """ #????????????????????????? | | ?????# """" # """ """ #????????????????????????? | | ??????? ??# #????????????????????????? | | ???######+#########+########### #??????????????? | | ???# !% #??????????????? | | ???# !! %! #??????????????? | | ???# % % !* #??????????????? | | ######""#+#########;#########+#########??????????? | | % # !gg @# #????????? | | # g! //Y #???????? | | " = # ///#""" #????????? | | % # ""T"" // #"Y == #????????? | | """" # """"" #?"" ! ??????????? | | % # #? ?????????????? | | #"""""#####################??#######?????????????? | | | | | | | | | | | | | | | | | | | | | | | | | | | | | | | | | | | | | +----------------------------------------------------+ Best States ------------- Heat Dissipation 100 Energy Generation 14 Energy Capacity 275 Matter Stores 300 Matter Capacity 300 Sight Range 16 Terrain Scan Range 16 Terrain Scan Density 10 Base Temperature (-) 100 Armor Coverage 800 Resistance: KI 20 Resistance: EM 15 Propulsion Shielding 66 Evasion (%) 40 Recoil Reduction 3 Matter Filtering 30 Offensive Hacking 10 Item Schematics ----------------- None Robot Schematics ------------------ None Fabricated ------------ Nothing Alien Tech Used ----------------- None Achievements -------------- None Challenges ------------ None Game ------ Seed HardcellCyclingKit Manual? 0 Play Time 00:57:59 Cumulative 246.4 hours Start 2024.08.17 @ 16:39:07 End 2024.08.17 @ 18:25:43 Sessions 3 Manual Loads 0 Difficulty Rogue Special Mode None Game No. 124 Rogue 124 Adventurer 0 Explorer 0 Win Type - Total 8 Types 4/1/3/0/0/0/0/0/0 Lore% 74 Gallery% 84 Achievement% 70 Wizard Run 0 Options --------- Layout 0 ASCII 0 Keyboard 0 Movement Mouse Keybinds 0 Fullscreen 2 Font 18/SmallcapsGlow Map View 76x50 Zoom Use 0% Tactical HUD 1 Map Filters NONE Filters NONE Steam 1 RUN: 91236a5a-de7f-4a82-8365-3081456a6654